fUST/lending_fUST_20240904
["ID","MTS","AMOUNT","RATE_DAILY","PERIOD"]
[337159428,1725461439086,-500.0,0.0002708,2]
[337159429,1725461439096,-497.69220203,0.0002708,2]
[337159430,1725461439106,-500.0,0.0002708,2]
[337159431,1725461439116,-500.0,0.0002708,2]
[337159432,1725461439125,-500.0,0.0002708,2]
[337159433,1725461439134,-500.0,0.0002708,2]
[337159434,1725461439143,-500.0,0.0002708,2]
[337159435,1725461439153,-500.0,0.0002708,2]
[337159436,1725461439162,-500.0,0.0002708,2]
[337159437,1725461439172,-500.0,0.0002708,2]
[337159438,1725461439182,-500.0,0.0002708,2]
[337159439,1725461439193,-500.0,0.00027081,2]
[337159440,1725461439203,-500.0,0.00027081,2]
[337159441,1725461439216,-311.44838259,0.00027081,2]
[337159442,1725461439229,-235.17285417,0.00027081,2]
[337159443,1725461439239,-500.0,0.00027081,2]
[337159444,1725461439250,-500.0,0.00027081,2]
[337159445,1725461439259,-500.0,0.00027081,2]
[337159446,1725461439269,-500.0,0.00027081,2]
[337159447,1725461439279,-500.0,0.00027081,2]
[337159448,1725461439291,-500.0,0.00027081,2]
[337159449,1725461439302,-501.99756549,0.00027081,2]
[337159450,1725461439311,-500.0,0.00027081,2]
[337159451,1725461439321,-500.0,0.00027081,2]
[337159452,1725461439332,-500.0,0.00027081,2]
[337159453,1725461439341,-500.0,0.00027081,2]
[337159454,1725461439351,-578.00978404,0.00027081,2]
[337159455,1725461439360,-500.0,0.00027081,2]
[337159456,1725461439370,-500.0,0.00027081,2]
[337159457,1725461439381,-500.0,0.00027081,2]
[337159458,1725461439390,-500.0,0.00027081,2]
[337159459,1725461439399,-500.0,0.00027081,2]
[337159460,1725461439411,-351.39829584,0.00027081,2]
[337159461,1725461439422,-500.0,0.00027081,2]
[337159462,1725461439431,-509.47,0.00027081,3]
[337159463,1725461439441,-10588.42606551,0.00027081,15]
[337159464,1725461439450,-2893.03138301,0.00027081,15]
[337159465,1725461439460,-617831.878061,0.00027082,2]
[337159466,1725461439470,-169.82,0.00027091,3]
[337159467,1725461439482,-311481.394425,0.00027091,3]
[337159468,1725461439492,-55555.0,0.00027101,3]
[337159469,1725461439503,-155740.697212,0.00027102,3]
[337159470,1725461439514,-152.226361,0.00027102,7]
[337159471,1725461439525,-151.0,0.00027102,2]
[337159472,1725461439536,-151.0,0.00027113,7]
[337159473,1725461439547,-151.0,0.00027113,7]
[337159474,1725461439557,-151.0,0.00027113,7]
[337159475,1725461439567,-2037.987447,0.00027113,7]
[337159476,1725461439577,-2037.987447,0.00027113,7]
[337159477,1725461439587,-151.0,0.00027113,7]
[337159478,1725461439597,-32053.08068637,0.00027122,7]
[337159479,1725461439606,-74503.21098425,0.00027123,2]
[337159480,1725461439616,-54317.45431394,0.00027123,2]
[337159481,1725461439630,-28557.61916923,0.00027123,2]
[337159482,1725461439695,-2074.00196304,0.00027123,2]
[337159498,1725461440401,-509591.91587708,0.00027123,2]
[337159644,1725461443432,-166.666666,0.00025162,2]
[337159646,1725461443443,-166.666666,0.00025424,2]
[337159648,1725461443454,-166.666666,0.00025686,2]
[337159650,1725461443463,-166.666666,0.00025948,2]
[337159651,1725461443473,-166.666666,0.00026211,2]
[337159652,1725461443484,-166.666666,0.00026473,2]
[337159653,1725461443494,-5048.50000402,0.00027123,2]
[337159654,1725461443506,-259003.32108762,0.00027123,2]
[337159666,1725461446610,-573.0,0.00027123,2]
[337159709,1725462347455,604.0,0.0002099,5]
[337159788,1725462632512,-176.495913,0.00023314,2]
[337159789,1725462632522,-300.0,0.00024336,2]
[337159790,1725462632532,-300.0,0.00024336,2]
[337159791,1725462632544,-699.71581259,0.00024337,2]
[337159792,1725462632589,-1727.25,0.00024337,2]
[337159802,1725462632720,-932.29989405,0.00024337,2]
[337159834,1725462638743,-852.05230593,0.00024337,2]
[337159835,1725462638755,-1220.49999999,0.00024337,2]
[337159836,1725462638768,-19468.18198744,0.00024337,2]
[337159837,1725462638778,-254.13284002,0.00024358,2]
[337159838,1725462638788,-2419.91591649,0.00024458,2]
[337159839,1725462638801,-612.09494698,0.00024558,2]
[337159840,1725462638811,-750.092846,0.00024658,2]
[337159841,1725462638821,-368.3469221,0.0002474,2]
[337159842,1725462638832,-178.698572,0.00025112,2]
[337159843,1725462638842,-5687.37293691,0.00025714,2]
[337159844,1725462638852,-5687.37293691,0.00025892,2]
[337159845,1725462638862,-5687.37293691,0.00026214,2]
[337159846,1725462638871,-5687.37293691,0.0002636,2]
[337159847,1725462638882,-420.0,0.0002677,2]
[337159848,1725462638892,-5687.37293691,0.00026832,2]
[337159849,1725462638903,-1415.57327253,0.00026873,2]
[337159850,1725462638913,-192.41243596,0.00026881,2]
[337159851,1725462638923,-1000.0,0.00026881,2]
[337159852,1725462638932,-1276.8990303,0.00026892,2]
[337159853,1725462638943,-468.78799448,0.00026913,2]
[337159854,1725462638953,-150.0,0.0002692,2]
[337159855,1725462638963,-5687.37293692,0.00026942,2]
[337159856,1725462638972,-1276.89903027,0.00026944,2]
[337159857,1725462638982,-169.82,0.00026959,3]
[337159858,1725462638991,-509.47,0.00026959,3]
[337159859,1725462639001,-10013.07,0.0002696,3]
[337159860,1725462639011,-500.0,0.00026968,2]
[337159861,1725462639022,-500.0,0.00026968,2]
[337159862,1725462639032,-311.44838259,0.00026968,2]
[337159863,1725462639042,-318.87271213,0.00026968,2]
[337159864,1725462639058,-500.0,0.00026968,2]
[337159865,1725462639068,-500.0,0.00026968,2]
[337159866,1725462639078,-500.0,0.00026968,2]
[337159867,1725462639087,-500.0,0.00026968,2]
[337159868,1725462639097,-500.0,0.00026968,2]
[337159869,1725462639106,-500.0,0.00026968,2]
[337159870,1725462639116,-500.0,0.00026968,2]
[337159871,1725462639125,-500.0,0.00026968,2]
[337159872,1725462639135,-500.0,0.00026968,2]
[337159873,1725462639144,-500.0,0.00026968,2]
[337159874,1725462639153,-500.0,0.00026968,2]
[337159875,1725462639163,-500.0,0.00026968,2]
[337159876,1725462639172,-500.0,0.00026968,2]
[337159877,1725462639183,-360.40387943,0.00026968,2]
[337159878,1725462639193,-500.0,0.00026968,2]
[337159879,1725462639203,-500.0,0.00026968,2]
[337159880,1725462639213,-523.38392713,0.00026968,2]
[337159881,1725462639223,-527.90728949,0.00026968,2]
[337159882,1725462639233,-500.0,0.00026968,2]
[337159883,1725462639243,-500.0,0.00026968,2]
[337159884,1725462639253,-500.0,0.00026968,2]
[337159885,1725462639264,-500.0,0.00026968,2]
[337159886,1725462639273,-500.0,0.00026968,2]
[337159887,1725462639284,-500.0,0.00026968,2]
[337159888,1725462639295,-500.0,0.00026968,2]
[337159889,1725462639308,-500.0,0.00026968,2]
[337159890,1725462639319,-500.0,0.00026968,2]
[337159891,1725462639329,-500.0,0.00026968,2]
[337159892,1725462639339,-500.0,0.00026968,2]
[337159893,1725462639349,-500.0,0.00026968,2]
[337159894,1725462639359,-500.0,0.00026968,2]
[337159895,1725462639369,-500.0,0.00026968,2]
[337159896,1725462639379,-500.0,0.00026968,2]
[337159897,1725462639389,-500.0,0.00026968,2]
[337159898,1725462639399,-500.0,0.00026968,2]
[337159899,1725462639408,-500.0,0.00026968,2]
[337159900,1725462639418,-500.0,0.00026968,2]
[337159901,1725462639429,-500.0,0.00026968,2]
[337159902,1725462639439,-500.0,0.00026968,2]
[337159903,1725462639449,-500.0,0.00026968,2]
[337159904,1725462639459,-500.0,0.00026968,2]
[337159905,1725462639468,-500.0,0.00026968,2]
[337159906,1725462639479,-500.0,0.00026968,2]
[337159907,1725462639488,-500.0,0.00026968,2]
[337159908,1725462639498,-500.0,0.00026968,2]
[337159909,1725462639508,-500.0,0.00026968,2]
[337159910,1725462639518,-500.0,0.00026968,2]
[337159911,1725462639528,-500.0,0.00026968,2]
[337159912,1725462639538,-500.0,0.00026968,2]
[337159913,1725462639551,-500.0,0.00026968,2]
[337159914,1725462639566,-500.0,0.00026968,2]
[337159915,1725462639579,-500.0,0.00026968,2]
[337159916,1725462639589,-367.69220203,0.00026968,2]
[337159917,1725462639598,-500.0,0.00026968,2]
[337159918,1725462639608,-500.0,0.00026968,2]
[337159919,1725462639619,-500.0,0.00026968,2]
[337159920,1725462639629,-500.0,0.00026968,2]
[337159921,1725462639639,-500.0,0.00026968,2]
[337159922,1725462639649,-500.0,0.00026968,2]
[337159923,1725462639660,-156407.37531,0.00026969,3]
[337159924,1725462639670,-205943.959354,0.00026969,2]
[337159925,1725462639680,-10588.42606551,0.00026971,15]
[337159926,1725462639691,-312814.750621,0.00026971,3]
[337159927,1725462639701,-500.0,0.00026973,2]
[337159928,1725462639711,-500.0,0.00026973,2]
[337159929,1725462639720,-500.36432075,0.00026973,2]
[337159930,1725462639731,-158.57494327,0.00026973,2]
[337159931,1725462639741,-160.18904169,0.00026973,2]
[337159932,1725462639751,-500.0,0.00026973,2]
[337159933,1725462639761,-310.18713937,0.00026973,2]
[337159934,1725462639771,-500.0,0.00026973,2]
[337159935,1725462639782,-343.36791284,0.00026973,2]
[337159936,1725462639793,-205943.959354,0.00026992,2]
[337159937,1725462639805,-1276.89903027,0.00026996,2]
[337159938,1725462639815,-55555.0,0.00027002,3]
[337159939,1725462639826,-1276.89903027,0.00027048,2]
[337159940,1725462639836,-500.0,0.00027073,2]
[337159941,1725462639846,-1276.89903027,0.000271,2]
[337159942,1725462639855,-1000.0,0.00027111,2]
[337159943,1725462639866,-885.86725944,0.00027111,2]
[337159944,1725462639876,-46139.39749879,0.00027123,2]
[337159945,1725462639886,-503.21,0.00027123,2]
[337159946,1725462639897,-623.95902438,0.00027123,4]
[337159947,1725462639907,-48130.89,0.000272,14]
[337159948,1725462639918,-150.112233,0.000272,5]
[337159949,1725462639929,-150.112233,0.000272,8]
[337159950,1725462639939,-150.112233,0.000272,7]
[337159951,1725462639949,-150.112233,0.000272,6]
[337159952,1725462639960,-268.096752,0.000272,7]
[337159953,1725462639970,-243.6805,0.0002726,2]
[337159954,1725462639980,-3000.0,0.00027297,2]
[337159956,1725462639990,-308.47,0.000273,14]
[337159957,1725462640001,-557.31,0.000273,14]
[337159958,1725462640011,-595.54,0.000273,7]
[337159959,1725462640021,-500.94504749,0.00027373,2]
[337159960,1725462640032,-501.00052669,0.00027373,2]
[337159961,1725462640042,-255.0334715,0.00027373,2]
[337159962,1725462640056,-501.36411391,0.00027373,2]
[337159963,1725462640072,-618.62345339,0.00027373,2]
[337159964,1725462640084,-500.0,0.00027373,2]
[337159965,1725462640094,-500.0,0.00027373,2]
[337159966,1725462640104,-202.98794253,0.00027373,2]
[337159967,1725462640114,-54317.45431394,0.00027394,2]
[337159968,1725462640124,-2893.03138301,0.00027397,15]
[337159969,1725462640135,-12558.41252025,0.00027397,2]
[337159970,1725462640145,-1370.61,0.00027397,2]
[337159971,1725462640155,-11174.04,0.00027397,2]
[337159972,1725462640166,-4150.96,0.00027397,2]
[337159973,1725462640176,-3091.95,0.00027397,2]
[337159974,1725462640186,-2704.3,0.00027397,2]
[337159975,1725462640196,-6731.57,0.00027397,2]
[337159976,1725462640205,-4718.52,0.00027397,2]
[337159977,1725462640216,-6869.57,0.00027397,2]
[337159978,1725462640226,-11889.1,0.00027397,2]
[337159979,1725462640236,-506.69,0.00027397,2]
[337159980,1725462640246,-508.58678562,0.00027397,2]
[337159981,1725462640256,-500.0,0.00027397,2]
[337159982,1725462640265,-500.0,0.00027397,2]
[337159983,1725462640275,-500.0,0.00027397,2]
[337159984,1725462640285,-500.0,0.00027397,2]
[337159985,1725462640296,-500.0,0.00027397,2]
[337159986,1725462640311,-500.0,0.00027397,2]
[337159987,1725462640320,-500.0,0.00027397,2]
[337159988,1725462640330,-500.0,0.00027397,2]
[337159989,1725462640339,-502.90685513,0.00027397,2]
[337159990,1725462640349,-500.0,0.00027397,2]
[337159991,1725462640359,-500.0,0.00027397,2]
[337159992,1725462640369,-500.0,0.00027397,2]
[337159993,1725462640380,-500.0,0.00027397,2]
[337159994,1725462640389,-500.0,0.00027397,2]
[337159996,1725462640400,-500.0,0.00027397,2]
[337159998,1725462640410,-500.0,0.00027397,2]
[337159999,1725462640420,-500.0,0.00027397,2]
[337160001,1725462640431,-500.0,0.00027397,2]
[337160003,1725462640441,-500.0,0.00027397,2]
[337160004,1725462640451,-500.0,0.00027397,2]
[337160006,1725462640461,-542.44594221,0.00027397,2]
[337160007,1725462640472,-500.0,0.00027397,2]
[337160008,1725462640482,-503.75105686,0.00027397,2]
[337160009,1725462640491,-500.0,0.00027397,2]
[337160010,1725462640502,-500.0,0.00027397,2]
[337160011,1725462640511,-515.44973936,0.00027397,2]
[337160012,1725462640521,-222.97,0.00027397,2]
[337160013,1725462640530,-500.0,0.00027397,2]
[337160014,1725462640540,-500.0,0.00027397,2]
[337160015,1725462640557,-500.0,0.00027397,2]
[337160016,1725462640570,-500.0,0.00027397,2]
[337160017,1725462640584,-500.0,0.00027397,2]
[337160018,1725462640595,-529.4,0.00027397,2]
[337160019,1725462640605,-500.0,0.00027397,2]
[337160020,1725462640616,-500.0,0.00027397,2]
[337160021,1725462640626,-500.0,0.00027397,2]
[337160022,1725462640636,-500.0,0.00027397,2]
[337160023,1725462640646,-500.0,0.00027397,2]
[337160024,1725462640656,-500.0,0.00027397,2]
[337160025,1725462640666,-500.0,0.00027397,2]
[337160026,1725462640678,-500.0,0.00027397,2]
[337160027,1725462640688,-500.0,0.00027397,2]
[337160028,1725462640698,-500.0,0.00027397,2]
[337160029,1725462640708,-500.0,0.00027397,2]
[337160030,1725462640718,-500.0,0.00027397,2]
[337160031,1725462640729,-500.0,0.00027397,2]
[337160032,1725462640739,-403.36322576,0.00027397,2]
[337160033,1725462640749,-500.0,0.00027397,2]
[337160034,1725462640759,-500.0,0.00027397,2]
[337160035,1725462640769,-500.0,0.00027397,2]
[337160036,1725462640779,-500.0,0.00027397,2]
[337160037,1725462640788,-500.0,0.00027397,2]
[337160038,1725462640799,-176.4,0.00027397,2]
[337160039,1725462640809,-500.0,0.00027397,2]
[337160040,1725462640818,-500.0,0.00027397,2]
[337160041,1725462640828,-500.0,0.00027397,2]
[337160042,1725462640837,-505.28799388,0.00027397,2]
[337160043,1725462640848,-500.0,0.00027397,2]
[337160044,1725462640858,-500.0,0.00027397,2]
[337160045,1725462640867,-474.40963994,0.00027397,2]
[337160046,1725462640878,-500.0,0.00027397,2]
[337160047,1725462640888,-500.0,0.00027397,2]
[337160048,1725462640898,-500.0,0.00027397,2]
[337160049,1725462640908,-500.0,0.00027397,2]
[337160050,1725462640917,-500.0,0.00027397,2]
[337160051,1725462640927,-500.0,0.00027397,2]
[337160052,1725462640938,-500.0,0.00027397,2]
[337160053,1725462640947,-500.0,0.00027397,2]
[337160054,1725462640957,-500.0,0.00027397,2]
[337160055,1725462640968,-500.0,0.00027397,2]
[337160056,1725462640978,-433.01092873,0.00027397,2]
[337160057,1725462640988,-447.26973218,0.00027397,2]
[337160058,1725462640997,-500.0,0.00027397,2]
[337160059,1725462641007,-500.0,0.00027397,2]
[337160060,1725462641017,-609.18962507,0.00027397,2]
[337160061,1725462641027,-500.0,0.00027397,2]
[337160062,1725462641037,-500.0,0.00027397,2]
[337160063,1725462641050,-500.0,0.00027397,2]
[337160064,1725462641060,-505.56216846,0.00027397,2]
[337160065,1725462641070,-500.0,0.00027397,2]
[337160066,1725462641079,-500.0,0.00027397,2]
[337160067,1725462641089,-500.0,0.00027397,2]
[337160068,1725462641099,-500.0,0.00027397,2]
[337160069,1725462641109,-500.0,0.00027397,2]
[337160070,1725462641119,-507.38018017,0.00027397,2]
[337160071,1725462641129,-503.87246671,0.00027397,2]
[337160072,1725462641139,-500.0,0.00027397,2]
[337160073,1725462641148,-500.0,0.00027397,2]
[337160074,1725462641157,-500.0,0.00027397,2]
[337160075,1725462641167,-357.65214362,0.00027397,2]
[337160076,1725462641177,-500.0,0.00027397,2]
[337160077,1725462641187,-500.0,0.00027397,2]
[337160078,1725462641198,-585.69664149,0.00027397,2]
[337160079,1725462641208,-500.0,0.00027397,2]
[337160080,1725462641218,-500.0,0.00027397,2]
[337160081,1725462641228,-500.0,0.00027397,2]
[337160082,1725462641238,-308.24021189,0.00027397,2]
[337160083,1725462641248,-500.0,0.00027397,2]
[337160084,1725462641257,-500.0,0.00027397,2]
[337160085,1725462641267,-374.27448049,0.00027397,2]
[337160086,1725462641277,-500.0,0.00027397,2]
[337160087,1725462641287,-500.0,0.00027397,2]
[337160088,1725462641299,-500.0,0.00027397,2]
[337160089,1725462641310,-507.10062357,0.00027397,2]
[337160090,1725462641321,-500.0,0.00027397,2]
[337160091,1725462641330,-500.0,0.00027397,2]
[337160092,1725462641341,-500.0,0.00027397,2]
[337160093,1725462641351,-500.0,0.00027397,2]
[337160094,1725462641361,-500.0,0.00027397,2]
[337160095,1725462641370,-507.92337057,0.00027397,2]
[337160096,1725462641380,-500.0,0.00027397,2]
[337160097,1725462641390,-500.0,0.00027397,2]
[337160098,1725462641400,-500.0,0.00027397,2]
[337160099,1725462641409,-500.0,0.00027397,2]
[337160100,1725462641418,-500.0,0.00027397,2]
[337160101,1725462641428,-500.0,0.00027397,2]
[337160102,1725462641438,-500.0,0.00027397,2]
[337160103,1725462641448,-500.0,0.00027397,2]
[337160104,1725462641458,-500.0,0.00027397,2]
[337160105,1725462641468,-500.0,0.00027397,2]
[337160106,1725462641478,-170.08215444,0.00027397,2]
[337160107,1725462641488,-500.0,0.00027397,2]
[337160108,1725462641498,-500.0,0.00027397,2]
[337160109,1725462641508,-500.0,0.00027397,2]
[337160110,1725462641517,-503.21884035,0.00027397,2]
[337160111,1725462641527,-500.0,0.00027397,2]
[337160112,1725462641689,-500.0,0.00027397,2]
[337160113,1725462641700,-500.0,0.00027397,2]
[337160114,1725462641710,-125.32854653,0.00027397,2]
[337160115,1725462641747,-374.67145347,0.00027397,2]
[337160116,1725462641756,-500.0,0.00027397,2]
[337160117,1725462641767,-500.0,0.00027397,2]
[337160118,1725462641778,-500.0,0.00027397,2]
[337160119,1725462641787,-500.0,0.00027397,2]
[337160120,1725462641800,-500.0,0.00027397,2]
[337160121,1725462641810,-500.0,0.00027397,2]
[337160122,1725462641819,-500.0,0.00027397,2]
[337160123,1725462641829,-500.0,0.00027397,2]
[337160124,1725462641839,-500.0,0.00027397,2]
[337160125,1725462641849,-500.0,0.00027397,2]
[337160126,1725462641859,-500.0,0.00027397,2]
[337160127,1725462641868,-279.87132766,0.00027397,2]
[337160128,1725462641878,-488.36200788,0.00027397,2]
[337160129,1725462641888,-500.0,0.00027397,2]
[337160130,1725462641899,-500.0,0.00027397,2]
[337160131,1725462641908,-500.0,0.00027397,2]
[337160132,1725462641918,-165.65066246,0.00027397,2]
[337160133,1725462641928,-500.0,0.00027397,2]
[337160134,1725462641938,-500.0,0.00027397,2]
[337160135,1725462641948,-500.0,0.00027397,2]
[337160136,1725462641958,-500.0,0.00027397,2]
[337160137,1725462641967,-500.0,0.00027397,2]
[337160138,1725462641978,-500.0,0.00027397,2]
[337160139,1725462641989,-500.0,0.00027397,2]
[337160140,1725462641999,-500.0,0.00027397,2]
[337160141,1725462642010,-217.84,0.00027397,2]
[337160142,1725462642019,-500.0,0.00027397,2]
[337160143,1725462642029,-271.16798836,0.00027397,2]
[337160144,1725462642039,-500.0,0.00027397,2]
[337160145,1725462642051,-500.0,0.00027397,2]
[337160146,1725462642062,-500.0,0.00027397,2]
[337160147,1725462642071,-500.0,0.00027397,2]
[337160148,1725462642081,-500.0,0.00027397,2]
[337160149,1725462642091,-500.0,0.00027397,2]
[337160150,1725462642100,-500.0,0.00027397,2]
[337160151,1725462642111,-500.0,0.00027397,2]
[337160152,1725462642121,-500.0,0.00027397,2]
[337160153,1725462642130,-503.12993496,0.00027397,2]
[337160154,1725462642140,-500.0,0.00027397,2]
[337160155,1725462642150,-502.63908232,0.00027397,2]
[337160156,1725462642159,-500.0,0.00027397,2]
[337160157,1725462642169,-500.0,0.00027397,2]
[337160158,1725462642178,-500.0,0.00027397,2]
[337160159,1725462642190,-500.0,0.00027397,2]
[337160160,1725462642200,-503.75139708,0.00027397,2]
[337160161,1725462642209,-500.0,0.00027397,2]
[337160162,1725462642219,-500.0,0.00027397,2]
[337160163,1725462642229,-500.0,0.00027397,2]
[337160164,1725462642240,-500.0,0.00027397,2]
[337160165,1725462642250,-501.97710126,0.00027397,2]
[337160166,1725462642260,-500.0,0.00027397,2]
[337160167,1725462642269,-301.68450984,0.00027397,2]
[337160168,1725462642279,-500.0,0.00027397,2]
[337160169,1725462642288,-500.0,0.00027397,2]
[337160170,1725462642300,-500.0,0.00027397,2]
[337160171,1725462642310,-500.0,0.00027397,2]
[337160172,1725462642320,-500.0,0.00027397,2]
[337160173,1725462642329,-500.0,0.00027397,2]
[337160174,1725462642340,-500.0,0.00027397,2]
[337160175,1725462642350,-500.0,0.00027397,2]
[337160176,1725462642359,-500.0,0.00027397,2]
[337160177,1725462642368,-500.0,0.00027397,2]
[337160178,1725462642379,-500.0,0.00027397,2]
[337160179,1725462642388,-500.0,0.00027397,2]
[337160180,1725462642398,-502.41108615,0.00027397,2]
[337160181,1725462642408,-396.36433586,0.00027397,2]
[337160182,1725462642418,-500.0,0.00027397,2]
[337160183,1725462642428,-500.0,0.00027397,2]
[337160184,1725462642438,-199.98747304,0.00027397,2]
[337160185,1725462642447,-500.0,0.00027397,2]
[337160186,1725462642457,-500.0,0.00027397,2]
[337160187,1725462642467,-500.0,0.00027397,2]
[337160188,1725462642477,-500.0,0.00027397,2]
[337160189,1725462642488,-500.0,0.00027397,2]
[337160190,1725462642498,-502.81854427,0.00027397,2]
[337160191,1725462642508,-500.0,0.00027397,2]
[337160192,1725462642518,-500.0,0.00027397,2]
[337160193,1725462642528,-500.0,0.00027397,2]
[337160194,1725462642538,-575.36315368,0.00027397,2]
[337160195,1725462642547,-500.0,0.00027397,2]
[337160196,1725462642558,-500.0,0.00027397,2]
[337160197,1725462642568,-500.0,0.00027397,2]
[337160198,1725462642582,-500.0,0.00027397,2]
[337160199,1725462642591,-500.0,0.00027397,2]
[337160200,1725462642600,-500.0,0.00027397,2]
[337160201,1725462642610,-500.0,0.00027397,2]
[337160202,1725462642620,-500.0,0.00027397,2]
[337160203,1725462642630,-500.0,0.00027397,2]
[337160204,1725462642639,-534.86031004,0.00027397,2]
[337160205,1725462642651,-593.18924675,0.00027397,2]
[337160206,1725462642661,-500.0,0.00027397,2]
[337160207,1725462642670,-500.0,0.00027397,2]
[337160208,1725462642680,-500.0,0.00027397,2]
[337160209,1725462642690,-500.0,0.00027397,2]
[337160210,1725462642699,-500.0,0.00027397,2]
[337160211,1725462642709,-500.0,0.00027397,2]
[337160212,1725462642719,-500.0,0.00027397,2]
[337160213,1725462642728,-500.0,0.00027397,2]
[337160214,1725462642739,-370.11133517,0.00027397,2]
[337160230,1725462643764,-129.88866483,0.00027397,2]
[337160231,1725462643774,-500.0,0.00027397,2]
[337160232,1725462643784,-500.0,0.00027397,2]
[337160233,1725462643794,-170.11133517,0.00027397,2]
[337160255,1725462646701,-210.45406786,0.00026968,2]
[337160256,1725462646711,-309.06365971,0.00026968,2]
[337160257,1725462646721,-329.88866483,0.00027397,2]
[337160258,1725462646730,-500.0,0.00027397,2]
[337160259,1725462646740,-326.32116178,0.00027397,2]
[337160260,1725462646750,-500.0,0.00027397,2]
[337160261,1725462646760,-500.0,0.00027397,2]
[337160262,1725462646769,-500.0,0.00027397,2]
[337160263,1725462646779,-500.0,0.00027397,2]
[337160264,1725462646788,-500.0,0.00027397,2]
[337160265,1725462646797,-500.0,0.00027397,2]
[337160266,1725462646807,-500.0,0.00027397,2]
[337160267,1725462646816,-500.0,0.00027397,2]
[337160268,1725462646826,-500.0,0.00027397,2]
[337160269,1725462646836,-34.27244582,0.00027397,2]
[337160270,1725462646850,-465.72755418,0.00027397,2]
[337160271,1725462646859,-279.43203352,0.00027397,2]
[337160272,1725462646871,-220.56796648,0.00027397,2]
[337160273,1725462646881,-500.0,0.00027397,2]
[337160274,1725462646890,-609.16,0.00027397,2]
[337160275,1725462646899,-500.0,0.00027397,2]
[337160276,1725462646909,-500.0,0.00027397,2]
[337160277,1725462646918,-533.7,0.00027397,2]
[337160278,1725462646927,-581.06,0.00027397,2]
[337160279,1725462646936,-157.16556744,0.00027397,2]
[337160280,1725462646945,-500.0,0.00027397,2]
[337160281,1725462646955,-500.0,0.00027397,2]
[337160282,1725462646964,-427.2,0.00027397,2]
[337160283,1725462646974,-20.62331313,0.00027397,2]
[337160337,1725463719756,7393.85123074,0.00024,60]
[337160338,1725463721645,310.39353344,0.00025,60]
[337160339,1725463725052,560.28673538,0.00027,120]
[337160340,1725463755301,-170.30921465,0.00022428,2]
[337160391,1725463832842,-300.0,0.00022427,2]
[337160393,1725463832852,-10224.23709867,0.00022428,2]
[337160425,1725463839041,-14505.45368668,0.00022428,2]
[337160426,1725463839051,-5210.4795684,0.00022671,2]
[337160427,1725463839066,-231.859692,0.00022834,2]
[337160428,1725463839076,-2838.87978273,0.00022915,2]
[337160429,1725463839087,-905.58524328,0.00023,2]
[337160430,1725463839098,-192.0,0.00023,2]
[337160431,1725463839110,-469.955536,0.00023015,2]
[337160432,1725463839120,-2452.7748909,0.00023059,2]
[337160433,1725463839132,-399.48,0.00023155,2]
[337160434,1725463839144,-254.13284002,0.00023805,2]
[337160435,1725463839157,-935.94263174,0.00023905,2]
[337160436,1725463839167,-192.41243596,0.00023906,2]
[337160437,1725463839178,-3562.042846,0.00023954,2]
[337160438,1725463839188,-319.54953753,0.00024,2]